Cogmind - Beta 11.1 @@@ ROGUE MODE // 2022.04.24 @ 14:33:17 Player: Jezoensis Result: Self-destructed Performance ------------- Evolutions (6) 3000 Regions Visited (11) 2200 Robots Destroyed (127) 635 Value Destroyed (3991) 3991 Prototype IDs (27) 540 Alien Tech Used (0) 0 Bonus (1223) 1223 TOTAL SCORE: 11589 Bonus ------- High Alert Combat Kills 223 Entered Garrisons 200 Used RIF Installer 500 Aligned with FarCom 300 Cogmind --------- Core Integrity 1150/1150 Matter 300/300 Energy 300/300 System Corruption 0% Temperature Cool (0) Movement Treading (160) Location -4/Factory Parts ------- > --- POWER (2) -------- Cold Fusion Reactor Cold Fusion Reactor > --- PROPULSION (5) --- Medium Treads Improved Medium Treads Heavy Treads > --- UTILITY (9) ------ Improved Coolant Injector High-capacity Storage Unit Advanced Visual Processing Unit Improved Terrain Scanner Advanced Terrain Scan Processor Improved Target Analyzer Hardlight Generator High-powered Tractor Beam > --- WEAPON (3) ------- Enhanced Gauss Cannon Tri-rail Accelerator > --- INVENTORY (20) --- Cold Fusion Reactor Huge Storage Unit Energy Well (350) High-capacity Matter Pod (200) Improved Matter Compressor (300) Improved Signal Interpreter Improved Terrain Scanner Improved Field Recycling Unit (148) Proton Cannon Heavy Phase Cannon Gauss Cannon Gauss Cannon Enhanced Gauss Cannon Enhanced Gauss Cannon Tri-rail Accelerator Peak State ------------ > --- POWER ------------ Cold Fusion Reactor Cold Fusion Reactor > --- PROPULSION ------- Heavy Treads Heavy Treads > --- UTILITY ---------- Improved Coolant Injector Huge Storage Unit Improved Matter Compressor Advanced Visual Processing Unit Advanced Terrain Scan Processor Improved Target Analyzer Focal Shield Hardlight Generator > --- WEAPON ----------- Enhanced Gauss Cannon Tri-rail Accelerator > --- INVENTORY -------- Cold Fusion Reactor Medium Treads Improved Medium Treads Heavy Treads High-capacity Storage Unit Energy Well High-capacity Matter Pod Improved Signal Interpreter Improved Terrain Scanner Improved Terrain Scanner High-powered Tractor Beam Improved Field Recycling Unit Proton Cannon Heavy Phase Cannon Gauss Cannon Gauss Cannon Enhanced Gauss Cannon Enhanced Gauss Cannon Enhanced Gauss Cannon Tri-rail Accelerator [Rating: 100] Favorites ----------- Power Ion Engine Engine Ion Engine Power Core Light Fission Core Reactor Cold Fusion Reactor Propulsion Light Treads Treads Light Treads Utility Improved Terrain Scanner Device Improved Terrain Scanner Storage High-capacity Storage Unit Processor Advanced Terrain Scan Processor Hackware Hacking Suite Protection Improved Medium Armor Plating Weapon Light Assault Rifle Energy Gun Medium Laser Energy Cannon Heavy Plasma Cannon Ballistic Gun Light Assault Rifle Ballistic Cannon Gauss Cannon Launcher EMP Blaster Special Weapon Mining Laser Build | -11 -10 -10 -10 -9 -8 -8 -7 -6 -5 -5 -4 ------- Run | Scr Mat Min Exi Min Mat Gar Fac Fac Fac Ext Fac Slots Evolved 12 | . . . . . 4 . 2 2 2 . 2 Power 1 | . . . . . . . . . 1 . . Propulsion 3 | . . . . . 1 . 1 . . . 1 Utility 7 | . . . . . 2 . 1 2 1 . 1 Weapon 1 | . . . . . 1 . . . . . . Parts Attached 211 | 7 16 6 2 10 18 13 43 14 66 16 . Power 11 | 1 . . . 2 1 . . 2 5 . . Engine 5 | 1 . . . 1 1 . . 1 1 . . Core 4 | . . . . 1 . . . 1 2 . . Reactor 2 | . . . . . . . . . 2 . . Propulsion 26 | 2 . 2 . 3 1 6 6 . 3 3 . Treads 26 | 2 . 2 . 3 1 6 6 . 3 3 . Leg . | . . . . . . . . . . . . Wheel . | . . . . . . . . . . . . Hover . | . . . . . . . . . . . . Flight . | . . . . . . . . . . . . Utility 118 | 2 9 1 . . 9 3 24 10 49 11 . Device 90 | 1 6 1 . . 2 2 21 7 41 9 . Storage 14 | 1 2 . . . 2 1 . 2 4 2 . Processor 8 | . . . . . 3 . 2 1 2 . . Hackware 3 | . 1 . . . 1 . 1 . . . . Protection 3 | . . . . . 1 . . . 2 . . Artifact . | . . . . . . . . . . . . Weapon 56 | 2 7 3 2 5 7 4 13 2 9 2 . Energy Gun 11 | 1 4 1 1 1 1 . 2 . . . . Energy Cannon 11 | . 1 . . . 2 . 4 1 3 . . Ballistic Gun 15 | 1 1 1 1 3 3 3 2 . . . . Ballistic Cannon 13 | . . . . . . . 4 1 6 2 . Launcher 4 | . . . . 1 1 1 1 . . . . Special Weapon 2 | . 1 1 . . . . . . . . . Impact Weapon . | . . . . . . . . . . . . Slashing Weapon . | . . . . . . . . . . . . Piercing Weapon . | . . . . . . . . . . . . Special Melee Weapon . | . . . . . . . . . . . . Unidentified Prototypes 4 | . . . . . 1 . . . 3 . . Corrupted Parts 6 | . . . . 1 . 4 . 1 . . . System Corruption 24 | . . . . 3 . 15 . 6 . . . Parts Lost 17 | . 1 1 . 2 . . 4 . 3 6 . Power 2 | . . . . 1 . . . . 1 . . Propulsion 6 | . . . . 1 . . 3 . . 2 . Utility 6 | . 1 . . . . . . . 2 3 . Weapon 3 | . . 1 . . . . 1 . . 1 . Highest Loss Streak 4 | . 1 1 . 1 . . 3 . 3 4 . To Critical Strikes 1 | . . . . . . . . . . 1 . Average Slot Usage (%) 95 | . 100 98 100 98 100 99 99 99 87 82 . Engine 7 | . 14 14 14 6 9 9 7 2 3 . . Core 1 | . . . . 5 . . . 3 3 . . Reactor 1 | . . . . . . . . . 2 11 . Treads 23 | . 28 28 28 28 27 26 29 26 12 11 . Device 11 | . 14 13 14 14 6 . 7 13 14 15 . Storage 10 | . 14 14 14 14 11 17 7 13 5 5 . Processor 13 | . . . . . 18 18 20 20 24 23 . Energy Gun 4 | . 15 8 14 10 . . . . . . . Energy Cannon 2 | . . . . . 4 4 2 5 2 2 . Ballistic Gun 9 | . 12 16 14 17 22 20 11 . . . . Ballistic Cannon 5 | . . . . . . . 7 13 12 8 . Naked Turns . | . . . . . . . . . . . . Heaviest Build 137 | 14 30 30 30 34 60 60 77 86 137 136 . Greatest Support 140 | 40 40 40 40 40 60 60 80 80 140 140 . Greatest Overweight (x) 1 | . . . . . . . . 1 . . . Average Overweight (x) . | . . . . . . . . . . . . Largest Inventory Capacity 25 | 8 15 15 15 15 20 20 20 20 25 25 . Average Capacity 18 | 7 10 15 15 15 17 20 20 20 24 24 . Most Carried 25 | 5 12 15 15 15 20 20 20 20 25 25 . Average Carried 17 | 2 8 14 14 14 15 19 19 19 23 22 . Final Capacity 25 | 8 15 15 15 15 20 20 20 20 25 20 20 Final Carried 25 | 3 12 15 15 15 20 20 19 20 25 16 16 Class Distribution -------------------- 39% | Mutant 25% | Scavenger-Skirmisher 20% | Skirmisher 8% | Scavenger-Mutant 5% | Gunner Dominant Class ---------------- Mutant | -10/Materials Mutant | -10/Mines Mutant | -10/Exiles Skirmisher | -9/Mines Scavenger-Skirmisher | -8/Materials Scavenger-Skirmisher | -8/Garrison Scavenger-Skirmisher | -7/Factory Scavenger-Mutant | -6/Factory Skirmisher | -5/Factory Skirmisher | -5/Extension Skirmisher | -4/Factory Resources | -11 -10 -10 -10 -9 -8 -8 -7 -6 -5 -5 -4 ----------- Run | Scr Mat Min Exi Min Mat Gar Fac Fac Fac Ext Fac Matter Collected 4641 | 309 235 101 60 166 191 47 842 . 1686 1004 . Remotely 1891 | . . . . . . . . . 1119 772 . Salvage Created 4453 | 212 508 95 . 229 271 239 854 . 1199 846 . Parts 191 | 16 38 10 . 8 12 8 33 . 41 25 . Haulers Intercepted 5 | . 2 . . . . . 1 . 2 . . Recyclers Shooed 12 | . 2 . . 1 1 . . . 7 1 . Parts Field Recycled 45 | . . . . . . . 18 6 21 . . Retrieved Matter 950 | . . . . . . . 280 252 418 . . Parts Self-Destructed . | . . . . . . . . . . . . Prevented . | . . . . . . . . . . . . Kills | -11 -10 -10 -10 -9 -8 -8 -7 -6 -5 -5 -4 ------- Run | Scr Mat Min Exi Min Mat Gar Fac Fac Fac Ext Fac Combat Hostiles Destroyed 90 | . 13 6 . 9 6 7 15 . 20 14 . Guns 31 | . 13 6 . 7 1 3 1 . . . . Cannons 46 | . . . . . 1 . 11 . 20 14 . AOE 11 | . . . . 2 3 3 3 . . . . Classes Destroyed 17 | 3 6 . . 1 1 . 3 . 1 2 . Worker 4 | 1 . . . . . . 2 . 1 . . Builder 7 | . 2 . . . 1 . 1 . 3 . . Tunneler 8 | 5 2 . . . . . . . . 1 . Hauler 5 | . 2 . . . . . 1 . 2 . . Recycler 11 | 1 1 . . . 1 . 1 . 3 4 . Mechanic 1 | . . . . . . . 1 . . . . Operator 1 | . 1 . . . . . . . . . . Watcher 4 | . 1 . . . . . . . 1 2 . Swarmer 29 | . 9 6 . 2 4 4 . . . 4 . Grunt 36 | . 4 . . 3 . 3 11 . 9 6 . Brawler 3 | . . . . . . . 1 . 2 . . Duelist 1 | . . . . . . . . . . 1 . Sentry 4 | . . . . . 2 . 1 . . 1 . Hunter 1 | . . . . . . . . . 1 . . Programmer 10 | . . . . . . . 2 . 8 . . Behemoth 2 | . . . . . . . . . . 2 . Assembled 4 | . . . . 4 . . . . . . . Best Kill Streak 16 | 7 7 3 . 3 4 7 6 . 7 16 . Combat Bots Only 13 | . 3 3 . 3 4 7 4 . 6 13 . Max Kills in Single Turn 3 | 1 2 1 . 2 3 2 1 . 2 2 . Gunslinging 1 | . 1 . . . . . . . . . . Exploded 3 | . . . . 2 3 1 1 . . . . Melee . | . . . . . . . . . . . . Uniques/NPCs Destroyed . | . . . . . . . . . . . . Combat | -11 -10 -10 -10 -9 -8 -8 -7 -6 -5 -5 -4 -------- Run | Scr Mat Min Exi Min Mat Gar Fac Fac Fac Ext Fac Damage Taken 5303 | . 405 95 . 370 104 131 1274 . 1058 1866 . Core 692 | . 108 16 . 106 13 16 224 . 46 163 . Absorbed by Shields 865 | . . . . . . . 96 . 301 468 . Reduced by Siege Mode 373 | . . . . . . . . . 146 227 . Core Remaining (%) 74 | 100 . . . 8 . 94 68 100 . 79 . Volleys Fired 282 | 13 51 12 . 26 10 11 49 3 61 46 . Largest 3 | 2 2 2 . 2 3 3 3 1 3 2 . Hottest 186 | 60 105 100 . 70 112 73 138 90 186 150 . Shots Fired 591 | 26 99 19 . 51 20 23 117 3 146 87 . Gun 231 | 26 96 14 . 49 7 14 25 . . . . Cannon 339 | . 1 . . . 12 . 90 3 146 87 . Launcher 14 | . . . . 2 1 9 2 . . . . Special 7 | . 2 5 . . . . . . . . . Kinetic 428 | 13 38 9 . 33 7 14 94 . 136 84 . Thermal 90 | 13 36 9 . 16 . . . 3 10 3 . Explosive . | . . . . . . . . . . . . Electromagnetic 73 | . 25 1 . 2 13 9 23 . . . . Robot Hit Streak 25 | 13 15 4 . 7 6 5 17 . 25 25 . Robot Miss Streak 8 | 1 8 2 . 2 3 5 7 . 2 2 . Penetration Max 1 | . . . . . . . 1 . 1 . . Secondary Targets 5 | . 2 1 . 1 . 1 . . . . . Max Gunslinging Chain 1 | . 1 1 . 1 . 1 . . . . . Shots Hit Robots 413 | 21 67 8 . 38 14 8 77 . 102 78 . Core Hits 260 | 8 53 6 . 18 10 11 57 . 57 40 . Critical Kills 2 | . . . . . . . 2 . . . . Critical Parts Destroyed 6 | . 1 . . . . . 5 . . . . Critical Strikes 48 | . 1 1 . 4 . . 7 . 23 12 . Burn 5 | . . 1 . 4 . . . . . . . Destroy 8 | . 1 . . . . . 7 . . . . Blast 35 | . . . . . . . . . 23 12 . Melee Attacks . | . . . . . . . . . . . . Impact . | . . . . . . . . . . . . Slashing . | . . . . . . . . . . . . Piercing . | . . . . . . . . . . . . Sneak Attacks . | . . . . . . . . . . . . Combat Hostiles . | . . . . . . . . . . . . Follow-up Attacks . | . . . . . . . . . . . . Damage Inflicted 12959 | 248 984 125 . 448 455 350 1979 6 4216 4148 . Guns 1881 | 248 896 120 . 337 19 69 192 . . . . Cannons 9954 | . 25 . . . 244 . 1378 . 4159 4148 . Explosions 1013 | . 50 . . 97 184 281 379 . 22 . . Melee . | . . . . . . . . . . . . Ramming 111 | . 13 5 . 14 8 . 30 6 35 . . Kinetic 9983 | 131 227 69 . 198 19 69 1134 . 4090 4046 . Thermal 1379 | 117 447 40 . 139 147 . 318 . 69 102 . Explosive . | . . . . . . . . . . . . Electromagnetic 1486 | . 297 11 . 97 281 281 497 . 22 . . Impact . | . . . . . . . . . . . . Slashing . | . . . . . . . . . . . . Piercing . | . . . . . . . . . . . . Highest Corruption 17 | . . . . 3 . 15 . 6 17 17 . Average Corruption 9 | . . . . 3 . 12 . 6 7 17 . Corruption Purged . | . . . . . . . . . . . . Corruption Blocked . | . . . . . . . . . . . . Effects 43 | . . . . 2 . . . . 23 18 . Message Errors 13 | . . . . 1 . . . . 9 3 . Matter Fused 7 | . . . . 1 . . . . 2 4 . Heat Flow Errors 4 | . . . . . . . . . 2 2 . Energy Discharges 4 | . . . . . . . . . 3 1 . Parts Rejected 1 | . . . . . . . . . 1 . . Data Loss (minor) 4 | . . . . . . . . . 1 3 . Data Loss (major) 3 | . . . . . . . . . 2 1 . Alerts 1 | . . . . . . . . . 1 . . Misdirections 1 | . . . . . . . . . 1 . . Weapon Failures 5 | . . . . . . . . . 1 4 . Overload Shots . | . . . . . . . . . . . . Overflow Damage 135 | . . . . . . . . . 34 101 . Projectiles 135 | . . . . . . . . . 34 101 . Explosions . | . . . . . . . . . . . . Melee . | . . . . . . . . . . . . Knockbacks 38 | . . . . 1 . . 11 . 18 8 . Impact 2 | . . . . 1 . . . . 1 . . Kinetic 33 | . . . . . . . 11 . 14 8 . Secondary 3 | . . . . . . . . . 3 . . Self-Inflicted Damage 262 | . 24 . . . . . 238 . . . . Shots 6 | . 1 . . . . . 5 . . . . Rammed 19 | . 1 1 . 5 3 . 4 1 4 . . Targets Rammed 21 | . 2 1 . 5 3 . 5 1 4 . . Kicked . | . . . . . . . . . . . . Crushed 2 | . 1 . . . . . 1 . . . . Highest Temperature 307 | . 185 82 . 112 108 70 307 48 211 190 . Average Temperature 67 | . 63 35 . 28 41 31 88 21 76 91 . Received Heat Transfer 1476 | . 60 . . . 18 63 618 . 197 520 . Effects 2 | . . . . . . . . . 2 . . Interference 2 | . . . . . . . . . 2 . . Siege Activations 12 | . . . . . . . . . 8 4 . Total Turns 230 | . . . . . . . . . 120 110 . Longest Duration 40 | . . . . . . . . . 33 40 . Robots Corrupted 2 | . . . . . 1 1 . . . . . Combat Hostiles 2 | . . . . . 1 1 . . . . . Parts Fried 8 | . 1 . . . 3 1 3 . . . . Impact Corruptions . | . . . . . . . . . . . . Robots Melted . | . . . . . . . . . . . . Combat Hostiles . | . . . . . . . . . . . . Parts Melted 1 | . . . . . . . . . . 1 . Heat Transferred 2346 | 275 585 185 . 703 200 . 200 . 87 111 . Parts Sabotaged . | . . . . . . . . . . . . Parts Stolen . | . . . . . . . . . . . . Parts Stripped . | . . . . . . . . . . . . Power Chain Reactions 7 | . 1 . . . 3 . 3 . . . . Missiles Intercepted . | . . . . . . . . . . . . Alert | -11 -10 -10 -10 -9 -8 -8 -7 -6 -5 -5 -4 ------- Run | Scr Mat Min Exi Min Mat Gar Fac Fac Fac Ext Fac Peak Influence 653 | 35 359 220 . 75 113 201 442 224 653 595 . Initial 291 | . 22 78 . . 15 61 105 216 11 266 291 Average 173 | 10 177 175 . 51 35 143 196 195 211 332 . Maximum Alert Level 2 | . 1 1 . . . 1 2 1 2 2 . Low Security (%) 60 | 100 65 48 . 100 100 45 68 13 57 . . Level 1 30 | . 34 51 . . . 54 22 86 17 77 . Level 2 9 | . . . . . . . 8 . 25 22 . Level 3 . | . . . . . . . . . . . . Level 4 . | . . . . . . . . . . . . Level 5 . | . . . . . . . . . . . . High Security . | . . . . . . . . . . . . Max Security . | . . . . . . . . . . . . Squads Dispatched 17 | . 2 . . . 1 . 4 . 9 1 . Investigation 1 | . . . . . . . 1 . . . . Extermination 3 | . . . . . . . 1 . 2 . . Reinforcement 8 | . 2 . . . . . 2 . 3 1 . Assault 3 | . . . . . . . . . 3 . . Garrison 2 | . . . . . 1 . . . 1 . . Intercept . | . . . . . . . . . . . . Searches Triggered . | . . . . . . . . . . . . Construction Impeded 1 | . . . . . . . . . . 1 . Haulers Reinforced 3 | . . . . . . . 1 . 2 . . Active Scanning Responses . | . . . . . . . . . . . . Cargo Convoy Interrupts . | . . . . . . . . . . . . Stealth | -11 -10 -10 -10 -9 -8 -8 -7 -6 -5 -5 -4 --------- Run | Scr Mat Min Exi Min Mat Gar Fac Fac Fac Ext Fac Distress Signals 15 | . 3 . . 2 1 . 2 . 6 1 . Communications Jammed 9 | . . . . . . . . . 9 . . Distress Signals 8 | . . . . . . . . . 8 . . Times Spotted 132 | . 21 6 . 10 9 6 23 . 38 19 . Peak Tracking Total 8 | . 5 3 . 3 4 3 6 . 6 8 . Tactical Retreats 5 | . . . . 1 . . 3 . 1 . . Traps | -11 -10 -10 -10 -9 -8 -8 -7 -6 -5 -5 -4 ------- Run | Scr Mat Min Exi Min Mat Gar Fac Fac Fac Ext Fac Traps Triggered 4 | . . . . . . 2 1 . 1 . . Indirectly 3 | . . . . . . 2 . . 1 . . Trap Hack Attempts . | . . . . . . . . . . . . Triggered . | . . . . . . . . . . . . Disarmed . | . . . . . . . . . . . . Reprogrammed . | . . . . . . . . . . . . Reused . | . . . . . . . . . . . . Traps Extracted . | . . . . . . . . . . . . Installed . | . . . . . . . . . . . . Triggered . | . . . . . . . . . . . . Exploded 1 | . . . 1 . . . . . . . . Machines | -11 -10 -10 -10 -9 -8 -8 -7 -6 -5 -5 -4 ---------- Run | Scr Mat Min Exi Min Mat Gar Fac Fac Fac Ext Fac Machines Disabled 19 | . 1 . . . . . 10 . 7 1 . Max in Single Turn 3 | . 1 . . . . . 3 . 1 1 . Garrison Access 2 | . . . . . . . 1 . 1 . . Machines Sabotaged . | . . . . . . . . . . . . Garrisons Compromised . | . . . . . . . . . . . . Overloaded Fab Kills . | . . . . . . . . . . . . Hacking | -11 -10 -10 -10 -9 -8 -8 -7 -6 -5 -5 -4 --------- Run | Scr Mat Min Exi Min Mat Gar Fac Fac Fac Ext Fac Machines Accessed 22 | . 5 . 1 . 4 . 6 2 3 1 . Terminals 12 | . 3 . . . 3 . 2 2 1 1 . Fabricators 3 | . . . . . . . 2 . 1 . . Repair Stations 2 | . 1 . . . . . 1 . . . . Recycling Units 2 | . 1 . . . . . . . 1 . . Scanalyzers . | . . . . . . . . . . . . Garrison Access 2 | . . . . . 1 . 1 . . . . Total Hacks 58 | . 15 . 1 . 19 . 10 4 7 2 . Successful 32 | . 10 . 1 . 10 . 3 2 5 1 . Failed 24 | . 4 . . . 8 . 7 2 2 1 . Catastrophic 1 | . . . . . . . . 1 . . . Database Lockouts 2 | . 1 . . . 1 . . . . . . Manual 35 | . 14 . 1 . 15 . 1 1 3 . . Terminals 41 | . 12 . . . 17 . 4 4 2 2 . Fabricators 6 | . . . . . . . 4 . 2 . . Repair Stations 2 | . 1 . . . . . 1 . . . . Recycling Units 5 | . 2 . . . . . . . 3 . . Scanalyzers . | . . . . . . . . . . . . Garrison Access 3 | . . . . . 2 . 1 . . . . Terminal Hacks 14 | . 4 . 1 . 5 . 1 1 1 1 . Robot Analysis 3 | . 2 . . . 1 . . . . . . Open Door 1 | . . . . . . . . . . 1 . Open DSF 1 | . . . . . . . 1 . . . . Branch Access Points 1 | . . . . . . . . 1 . . . Terminal Index 1 | . . . . . 1 . . . . . . Unreport Threat 2 | . 1 . . . 1 . . . . . . Locate Traps 3 | . 1 . . . 1 . . . 1 . . Hauler Manifests 1 | . . . . . 1 . . . . . . EX-Prototype ID Bank 1 | . . . 1 . . . . . . . . Fabricator Hacks 1 | . . . . . . . . . 1 . . Network Status 1 | . . . . . . . . . 1 . . Repair Station Hacks . | . . . . . . . . . . . . Recycling Unit Hacks 1 | . . . . . . . . . 1 . . Retrieve Matter 1 | . . . . . . . . . 1 . . Scanalyzer . | . . . . . . . . . . . . Garrison Access Hacks 2 | . . . . . 1 . 1 . . . . Unlock Access 1 | . . . . . 1 . . . . . . Seal Access 1 | . . . . . . . 1 . . . . Unauthorized Hacks 14 | . 6 . . . 4 . 1 1 2 . . Terminals 8 | . 3 . . . 4 . . 1 . . . Track 1 | . . . . . 1 . . . . . . Botnet 5 | . 2 . . . 2 . . 1 . . . Operators 2 | . 1 . . . 1 . . . . . . Fabricators 1 | . . . . . . . . . 1 . . Haulers 1 | . . . . . . . . . 1 . . Repair Stations 2 | . 1 . . . . . 1 . . . . Mechanics 2 | . 1 . . . . . 1 . . . . Recycling Units 3 | . 2 . . . . . . . 1 . . Reject 1 | . 1 . . . . . . . . . . Recyclers 2 | . 1 . . . . . . . 1 . . Scanalyzers . | . . . . . . . . . . . . Garrison Access . | . . . . . . . . . . . . Data Cores Recovered . | . . . . . . . . . . . . Used . | . . . . . . . . . . . . Hacking Detections 15 | . 4 . . . 3 . 4 2 2 . . Full Trace Events . | . . . . . . . . . . . . Feedback Events . | . . . . . . . . . . . . Feedback Blocked . | . . . . . . . . . . . . Robot Schematics Acquired . | . . . . . . . . . . . . Robots Built . | . . . . . . . . . . . . Authchips . | . . . . . . . . . . . . Time . | . . . . . . . . . . . . Total Robot Build Rating . | . . . . . . . . . . . . Part Schematics Acquired . | . . . . . . . . . . . . Parts Built . | . . . . . . . . . . . . Authchips . | . . . . . . . . . . . . Time . | . . . . . . . . . . . . Total Part Build Rating . | . . . . . . . . . . . . Parts Repaired . | . . . . . . . . . . . . Time . | . . . . . . . . . . . . Parts Recycled . | . . . . . . . . . . . . Recycled Matter . | . . . . . . . . . . . . Retrieved Matter . | . . . . . . . . . . . . Retrieved Components . | . . . . . . . . . . . . Parts Scanalyzed . | . . . . . . . . . . . . Part Schematics Acquired . | . . . . . . . . . . . . Parts Damaged . | . . . . . . . . . . . . Bothacking | -11 -10 -10 -10 -9 -8 -8 -7 -6 -5 -5 -4 ------------ Run | Scr Mat Min Exi Min Mat Gar Fac Fac Fac Ext Fac Used RIF Installer 1 | . . . . . . 1 . . . . . Robots Hacked . | . . . . . . . . . . . . Non-combat . | . . . . . . . . . . . . Combat . | . . . . . . . . . . . . Robot Hacks Applied . | . . . . . . . . . . . . Relay Couplers Released 3 | . . . . . . . 1 . 2 . . Machine Destruction 3 | . . . . . . . 1 . 2 . . Fabnet Peak Effective % . | . . . . . . . . . . . . Robots Rewired . | . . . . . . . . . . . . Allies Hacked . | . . . . . . . . . . . . Hacks Repelled . | . . . . . . . . . . . . Allies | -11 -10 -10 -10 -9 -8 -8 -7 -6 -5 -5 -4 -------- Run | Scr Mat Min Exi Min Mat Gar Fac Fac Fac Ext Fac Total Allies 3 | . . . . . . . . . 3 . . Largest Group 3 | . . . . . . . . . 3 . . Highest-Rated Group 93 | . . . . . . . . . 93 . . Highest-Rated Ally 31 | . . . . . . . . . 31 . . Total Orders 14 | . . . . . . . 6 5 3 . . EXPLORE 8 | . . . . . . . 3 3 2 . . RETURN 6 | . . . . . . . 3 2 1 . . Ally Attacks 15 | . . . . . . . . . 15 . . Total Damage 211 | . . . . . . . . . 211 . . Kills . | . . . . . . . . . . . . Allies Corrupted . | . . . . . . . . . . . . Allies Melted 1 | . . . . . . . . . 1 . . Intel | -11 -10 -10 -10 -9 -8 -8 -7 -6 -5 -5 -4 ------- Run | Scr Mat Min Exi Min Mat Gar Fac Fac Fac Ext Fac Robot Analysis Total 3 | . 2 . . . 1 . . . . . . Derelict Logs Recovered 1 | . . . . 1 . . . . . . . Drone Launches 8 | . . . . . . . 3 4 1 . . Drone Recoveries 7 | . . . . . . . 3 3 1 . . Exploration | -11 -10 -10 -10 -9 -8 -8 -7 -6 -5 -5 -4 ------------- Run | Scr Mat Min Exi Min Mat Gar Fac Fac Fac Ext Fac Turns Passed 5740 | 107 798 256 420 594 348 188 973 462 1219 375 . Spaces Moved 2781 | 50 375 126 258 312 172 90 454 259 552 133 . Core 24 | 24 . . . . . . . . . . . Treads 2757 | 26 375 126 258 312 172 90 454 259 552 133 . Legs . | . . . . . . . . . . . . Wheels . | . . . . . . . . . . . . Hover . | . . . . . . . . . . . . Flight . | . . . . . . . . . . . . Fastest Speed 50 | 50 160 160 160 160 160 160 160 160 160 160 . Average Speed 159 | 107 160 160 160 160 160 160 160 163 160 160 . Slowest Speed 240 | 160 160 160 160 160 160 160 160 240 160 160 . Overloaded Moves . | . . . . . . . . . . . . Propulsion Burnouts . | . . . . . . . . . . . . Robots Hopped . | . . . . . . . . . . . . Cave-ins Triggered . | . . . . . . . . . . . . Exploration Rate (%) 34 | 3 62 23 65 70 20 37 27 12 24 31 . Regions Visited 11 Branch Regions 4 Pre-discovered Areas . | . . . . . . . . . . . . Known Exits Taken 1 | . . . . . 1 . . . . . . Unknown Exits Taken 9 | 1 1 1 1 1 . . 1 1 1 1 . Scrap Searched . | . . . . . . . . . . . . Spaces Dug 19 | . 2 5 . . . . 2 3 7 . . Terrain Destroyed 109 | . 5 5 . . 12 . 55 3 19 10 . Melee . | . . . . . . . . . . . . Projectile 43 | . 2 5 . . . . 4 3 19 10 . AOE 66 | . 3 . . . 12 . 51 . . . . Terrain Rammed . | . . . . . . . . . . . . Walls Destroyed . | . . . . . . . . . . . . Machines Disabled . | . . . . . . . . . . . . Actions | -11 -10 -10 -10 -9 -8 -8 -7 -6 -5 -5 -4 --------- Run | Scr Mat Min Exi Min Mat Gar Fac Fac Fac Ext Fac Total 3496 | 75 467 151 267 358 221 114 600 294 749 200 . Wait 63 | . 3 2 . 1 5 1 14 4 27 6 . Move 2769 | 49 374 125 257 311 171 88 453 258 551 132 . Hop . | . . . . . . . . . . . . Pick Up 78 | 6 12 2 4 2 10 . 18 7 17 . . Fast Attach 30 | 4 3 2 . 4 2 2 3 2 8 . . Attach 41 | 3 2 2 1 2 4 1 8 3 8 7 . Detach 12 | . 2 3 . . 2 1 1 . 3 . . Swap 140 | . 11 2 1 4 12 10 32 9 50 9 . Drop 59 | . 7 . 4 3 2 . 17 7 19 . . Fire 282 | 13 51 12 . 26 10 11 49 3 61 46 . Melee . | . . . . . . . . . . . . Ram 1 | . . . . . . . . . 1 . . Kick . | . . . . . . . . . . . . Crush 21 | . 2 1 . 5 3 . 5 1 4 . . Escape Stasis . | . . . . . . . . . . . . Rewire . | . . . . . . . . . . . . Trap . | . . . . . . . . . . . . Miscellaneous . | . . . . . . . . . . . . Route ------- -11/Scrapyard -10/Materials (discovered 3 exits: [*Mat x2] / [*Min]) -10/Mines (discovered 2 exits: [*Mat] / *Exi) -10/Exiles (discovered 2 exits: [*Min x2]) -9/Mines -8/Materials -8/Garrison -7/Factory (discovered 2 exits: *Fac / [*Low]) -6/Factory (discovered 3 exits: *Fac / *Low x2) -5/Factory -5/Extension -4/Factory History --------- Turn | Location | Event 12 | -11/Scrapyard | Discovered new exit (range 13) 108 | -11/Scrapyard | Entered Materials 303 | -10/Materials | Discovered new exit (range 13) 312 | -10/Materials | Build established: Mutant 670 | -10/Materials | Discovered new exit (range 15) 758 | -10/Materials | Discovered new exit (range 15) 761 | -10/Materials | Central database locked down 906 | -10/Materials | Entered Mines 1120 | -10/Mines | Discovered new exit (range 5) 1156 | -10/Mines | Deemed a non-threat by the Exiles lab entrance 1156 | -10/Mines | Discovered new exit (range 5) 1162 | -10/Mines | Entered Exiles 1185 | -10/Exiles | Discovered new exit (range 15) 1207 | -10/Exiles | Met 8R-AWN 1230 | -10/Exiles | Met EX-HEX 1340 | -10/Exiles | Met EX-BIN 1357 | -10/Exiles | Aligned with FarCom system 1359 | -10/Exiles | Given EX-Vault access code 1396 | -10/Exiles | Opened EX-Vault 1405 | -10/Exiles | Found Supersonic Drone Bay 1437 | -10/Exiles | Warned to stay clear of 0b10 Research branches 1463 | -10/Exiles | Exiles lab attacked by MAIN.C 1569 | -10/Exiles | Discovered new exit (range 10) 1582 | -10/Exiles | Left Exiles lab with Supersonic Drone Bay 1582 | -10/Exiles | Entered Mines 1674 | -9/Mines | Assembled infested the area 1679 | -9/Mines | Assisted by a Guerilla fighting off Assembled 1837 | -9/Mines | Core integrity fell below 50% 1894 | -9/Mines | Build established: Skirmisher 1911 | -9/Mines | Core integrity fell below 20% 1932 | -9/Mines | Learned Materials garrison access intel 2083 | -9/Mines | Discovered new exit (range 5) 2176 | -9/Mines | Entered Materials 2176 | -8/Materials | Evolved 4 slots: Propulsion x1, Utility x2, Weapon x1 2177 | -8/Materials | Loaded intel: 1 garrison access location 2376 | -8/Materials | Central database locked down 2410 | -8/Materials | Build established: Scavenger-Skirmisher 2448 | -8/Materials | Garrison activated, responded to threat 2522 | -8/Materials | Identified exit to Garrison 2524 | -8/Materials | Entered Garrison 2578 | -8/Garrison | Triggered checkpoint 2604 | -8/Garrison | Triggered checkpoint 2631 | -8/Garrison | Destroyed 7 combat bots 2668 | -8/Garrison | Discovered new exit (range 10) 2691 | -8/Garrison | Installed Relay Interface Framework 2703 | -8/Garrison | System corruption reached 10% 2712 | -8/Garrison | Entered Factory 2712 | -7/Factory | Evolved 2 slots: Propulsion x1, Utility x1 3439 | -7/Factory | Lost 3 parts (2n1w) 3485 | -7/Factory | Discovered new exit (range 80) 3485 | -7/Factory | Discovered new exit (range 77) 3685 | -7/Factory | Entered another Factory area 3685 | -6/Factory | Evolved 2 slots: Utility x2 3738 | -6/Factory | Discovered new exit (range 14) 3743 | -6/Factory | Identified exit to Lower Caves 3991 | -6/Factory | Build established: Scavenger-Mutant 4147 | -6/Factory | Entered another Factory area 4147 | -5/Factory | Accompanied by 1 ally 4147 | -5/Factory | Evolved 2 slots: Power x1, Utility x1 4834 | -5/Factory | Garrison activated, responded to threat 4935 | -5/Factory | Discovered new exit (range 14) 4968 | -5/Factory | System corruption reached 10% 4999 | -5/Factory | Lost 3 parts (1p2u) 5347 | -5/Factory | First assault squad dispatched 5366 | -5/Factory | Entered Extension 5547 | -5/Extension | Spotted B-75 Beast 5575 | -5/Extension | Destroyed B-75 Beast 5591 | -5/Extension | Disrupted transfer network 5598 | -5/Extension | Spotted B-75 Beast 5635 | -5/Extension | Destroyed B-75 Beast 5718 | -5/Extension | Discovered new exit (range 14) 5732 | -5/Extension | Lost 4 parts (2n1u1w) 5738 | -5/Extension | Destroyed 13 combat bots 5741 | -5/Extension | Entered Factory 5741 | -4/Factory | Evolved 2 slots: Propulsion x1, Utility x1 5741 | -4/Factory | Self-destructed Last Messages --------------- 05723_ Acquired 3 matter. 05723_ Acquired 2 matter. 05723_ Acquired 22 matter. 05725_ Acquired 5 matter. 05725_ Acquired 7 matter. 05726_ Acquired 40 matter. 05726_ Acquired 44 matter. 05726_ Acquired 16 matter. 05726_ R-10 Processor collects Carbon-fiber Leg. 05730_ R-10 Processor collects Lgt. Angular Momentum Engine. 05735_ R-10 Processor collects Carbon-fiber Leg. 05738_ R-10 Processor collects Wheel. 05740_ Connecting with Door Terminal... 05740_ Current location identified: Extension >>Open(Door) Sealed Heavy Doors opened. PARAMETERS=PROPULSION+1,UTILITY+1 LOCATION=UNKNOWN GOAL=ESCAPE 05741_ Receiving FarCom transmissions... Map ----- +----------------------------------------------------+ | ???????????????????????????????????????????????? | | ???????????????????????????????????????????????? | | ???????????????????????????????????????????????? | | ???????????????????????????????????????????????? | | ???????????????????????????????????????????????? | | ???????????????????????????????????????????????? | | ???????????????????????????????????????????????? | | ???????????????????????????????????????????????? | | ???????????????????????????????????????????????? | | ???????????????????????????????????????????????? | | ???????????????????????????????????????????????? | | ???????????????????????????????????????????????? | | ???????????????????????????????????????????????? | | ???????????????????????????????????????????????? | | ???????????????????????????????????????????????? | | ???????????????????????????????????????????????? | | ???????????????????????????????????????????????? | | ???????????????????????????????????????????????? | | ???????????????????????????????????????????????? | | ???????????????????????????????????????????????? | | ???????????????????????????????????????????????? | | ???????????????????????????????????????????????? | | ?????????????###########+####??????????????????? | | ?????????????# #??????????????????? | | ?????????????# #??????????????????? | | ?????????????# @ #??????????????????? | | ?????????????# #??????????????????? | | ?????????????# #??????????????????? | | ?????????????# ##########??????????????????? | | ?????????????# ??????????????????????????????? | | ??????????? ????????????????????????????????? | | ????????? ???????????????????????????????????? | | ???????? ?????????????????????????????????????? | | ???????????????????????????????????????????????? | | ???????????????????????????????????????????????? | | ???????????????????????????????????????????????? | | ???????????????????????????????????????????????? | | ???????????????????????????????????????????????? | | ???????????????????????????????????????????????? | | ???????????????????????????????????????????????? | | ???????????????????????????????????????????????? | | ???????????????????????????????????????????????? | | ???????????????????????????????????????????????? | | ???????????????????????????????????????????????? | | ???????????????????????????????????????????????? | | ???????????????????????????????????????????????? | | ???????????????????????????????????????????????? | | ???????????????????????????????????????????????? | | ???????????????????????????????????????????????? | | ???????????????????????????????????????????????? | +----------------------------------------------------+ Best States ------------- Heat Dissipation 59 Coolant Potential 80 Energy Generation 29 Energy Capacity 700 Matter Stores 584 Matter Capacity 600 Sight Range 20 Terrain Scan Range 16 Terrain Scan Density 210 Jamming Range 14 Armor Coverage 225 Resistance: KI 20 Evasion (%) 50 Targeting Accuracy 11 Target Analysis 6 Recoil Reduction 4 Offensive Hacking 10 Item Schematics ----------------- None Robot Schematics ------------------ None Fabricated ------------ Nothing Alien Tech Used ----------------- None Achievements -------------- None Challenges ------------ None Game ------ Seed CoreSubatomicCharge Manual? 0 Play Time 01:32:18 Cumulative 610.2 hours Start 2022.04.24 @ 00:05:16 End 2022.04.24 @ 14:33:17 Sessions 7 Manual Loads 0 Difficulty Rogue Special Mode None Game No. 308 Rogue 181 Adventurer 125 Explorer 2 Win Type - Total 59 Types 50/3/3/1/1/0/0/0/1 Lore% 74 Gallery% 86 Achievement% 70 Wizard Run 0 Options --------- ASCII 0 Keyboard 1 Movement Numpad Keybinds 0 Fullscreen 1 Font 36/TerminusFine Map View 76x50 Tactical HUD 1 Map Filters NONE Filters NONE Steam 1 RUN: b6b24ef2-d46c-416f-8e82-4545a23b8d56